fUST/lending_fUST_20250429
["ID","MTS","AMOUNT","RATE_DAILY","PERIOD"]
[359238742,1745857864016,-400.0,0.00023287,2]
[359238743,1745857864026,-400.0,0.00023287,2]
[359238744,1745857864036,-400.0,0.00023287,2]
[359238745,1745857864046,-2049.63,0.00023287,2]
[359238746,1745857864055,-472.15,0.00023287,2]
[359238747,1745857864065,-400.0,0.00023287,2]
[359238748,1745857864075,-400.0,0.00023287,2]
[359238749,1745857864085,-371.06322771,0.00023287,2]
[359238750,1745857864094,-400.0,0.00023287,2]
[359238751,1745857864104,-400.0,0.00023287,2]
[359238752,1745857864114,-400.0,0.00023287,2]
[359238753,1745857864125,-400.0,0.00023287,2]
[359238754,1745857864135,-306.7907118,0.00023452,2]
[359238755,1745857864145,-500.0,0.00023561,2]
[359238756,1745857864155,-500.0,0.00023561,2]
[359238757,1745857864166,-500.0,0.00023561,2]
[359238758,1745857864176,-500.0,0.00023561,2]
[359238759,1745857864186,-500.0,0.00023561,2]
[359238760,1745857864196,-500.0,0.00023561,2]
[359238761,1745857864207,-568.42300693,0.00023561,2]
[359238762,1745857864217,-500.0,0.00023561,2]
[359238763,1745857864229,-500.0,0.00023561,2]
[359238764,1745857864240,-500.0,0.00023561,2]
[359238765,1745857864250,-500.0,0.00023561,2]
[359238766,1745857864261,-500.0,0.00023561,2]
[359238767,1745857864272,-500.0,0.00023561,2]
[359238768,1745857864282,-500.0,0.00023561,2]
[359238769,1745857864292,-500.0,0.00023561,2]
[359238770,1745857864302,-266.0,0.00023561,2]
[359238771,1745857864312,-400.0,0.00023561,2]
[359238772,1745857864322,-400.0,0.00023561,2]
[359238773,1745857864333,-484.15,0.00023561,2]
[359238774,1745857864343,-400.0,0.00023561,2]
[359238775,1745857864353,-400.0,0.00023561,2]
[359238776,1745857864363,-400.0,0.00023561,2]
[359238777,1745857864373,-400.0,0.00023561,2]
[359238778,1745857864385,-400.0,0.00023561,2]
[359238779,1745857864395,-400.0,0.00023561,2]
[359238780,1745857864406,-425.6,0.00023561,2]
[359238781,1745857864416,-400.0,0.00023561,2]
[359238782,1745857864426,-400.0,0.00023561,2]
[359238783,1745857864437,-400.0,0.00023561,2]
[359238784,1745857864447,-500.0,0.00023561,2]
[359238785,1745857864458,-400.0,0.00023561,2]
[359238786,1745857864471,-689.45,0.00023561,2]
[359238787,1745857864481,-400.0,0.00023561,2]
[359238788,1745857864491,-400.0,0.00023561,2]
[359238789,1745857864501,-400.0,0.00023561,2]
[359238790,1745857864513,-400.0,0.00023561,2]
[359238791,1745857864522,-400.0,0.00023561,2]
[359238792,1745857864532,-400.0,0.00023561,2]
[359238793,1745857864541,-400.0,0.00023561,2]
[359238794,1745857864553,-400.0,0.00023561,2]
[359238795,1745857864563,-400.0,0.00023561,2]
[359238796,1745857864573,-400.0,0.00023561,2]
[359238797,1745857864583,-400.0,0.00023561,2]
[359238798,1745857864593,-400.0,0.00023561,2]
[359238799,1745857864602,-400.0,0.00023561,2]
[359238800,1745857864612,-400.0,0.00023561,2]
[359238801,1745857864623,-400.0,0.00023561,2]
[359238802,1745857864633,-400.0,0.00023561,2]
[359238803,1745857864643,-666.85,0.00023561,2]
[359238804,1745857864653,-400.0,0.00023561,2]
[359238805,1745857864662,-503.93,0.00023561,2]
[359238806,1745857864671,-400.0,0.00023561,2]
[359238807,1745857864681,-400.0,0.00023561,2]
[359238808,1745857864692,-400.0,0.00023561,2]
[359238809,1745857864702,-400.0,0.00023561,2]
[359238810,1745857864712,-1210.99,0.00023561,2]
[359238811,1745857864722,-400.0,0.00023561,2]
[359238812,1745857864731,-400.0,0.00023561,2]
[359238813,1745857864741,-518.55,0.00023561,2]
[359238814,1745857864751,-400.0,0.00023561,2]
[359238815,1745857864761,-400.0,0.00023561,2]
[359238816,1745857864771,-400.0,0.00023561,2]
[359238817,1745857864781,-475.4,0.00023561,2]
[359238818,1745857864790,-400.0,0.00023561,2]
[359238819,1745857864800,-400.0,0.00023561,2]
[359238820,1745857864810,-400.0,0.00023561,2]
[359238821,1745857864819,-2002.58,0.00023561,2]
[359238822,1745857864829,-950.55,0.00023561,2]
[359238823,1745857864839,-400.0,0.00023561,2]
[359238824,1745857864849,-400.0,0.00023561,2]
[359238825,1745857864858,-400.0,0.00023561,2]
[359238826,1745857864868,-309.31965916,0.00023561,2]
[359238827,1745857864878,-682.21,0.00023561,2]
[359238828,1745857864888,-459.87520404,0.00023561,2]
[359238829,1745857864897,-400.0,0.00023561,2]
[359238830,1745857864908,-400.0,0.00023561,2]
[359238831,1745857864918,-400.0,0.00023561,2]
[359238832,1745857864928,-400.0,0.00023561,2]
[359238833,1745857864938,-400.0,0.00023561,2]
[359238834,1745857864948,-400.0,0.00023561,2]
[359238835,1745857864958,-400.0,0.00023561,2]
[359238836,1745857864967,-400.0,0.00023561,2]
[359238837,1745857864977,-400.0,0.00023561,2]
[359238838,1745857864987,-400.0,0.00023561,2]
[359238839,1745857864997,-400.0,0.00023561,2]
[359238840,1745857865006,-400.0,0.00023561,2]
[359238841,1745857865016,-400.0,0.00023561,2]
[359238842,1745857865027,-400.0,0.00023561,2]
[359238843,1745857865036,-400.0,0.00023561,2]
[359238844,1745857865046,-400.0,0.00023561,2]
[359238845,1745857865056,-400.0,0.00023561,2]
[359238846,1745857865067,-400.0,0.00023561,2]
[359238847,1745857865077,-400.0,0.00023561,2]
[359238848,1745857865086,-400.0,0.00023561,2]
[359238849,1745857865096,-400.0,0.00023561,2]
[359238850,1745857865106,-440.4,0.00023561,2]
[359238851,1745857865115,-400.0,0.00023561,2]
[359238852,1745857865126,-414.03,0.00023561,2]
[359238853,1745857865136,-400.0,0.00023561,2]
[359238854,1745857865146,-400.0,0.00023561,2]
[359238855,1745857865155,-400.0,0.00023561,2]
[359238856,1745857865165,-400.0,0.00023561,2]
[359238857,1745857865176,-400.0,0.00023561,2]
[359238858,1745857865186,-830.13,0.00023561,2]
[359238859,1745857865196,-400.0,0.00023561,2]
[359238860,1745857865205,-400.0,0.00023561,2]
[359238861,1745857865216,-446.3252603,0.00023561,2]
[359238862,1745857865226,-400.0,0.00023561,2]
[359238863,1745857865235,-400.0,0.00023561,2]
[359238864,1745857865245,-400.0,0.00023561,2]
[359238865,1745857865254,-400.0,0.00023561,2]
[359238866,1745857865264,-409.41450596,0.00023561,2]
[359238867,1745857865274,-500.0,0.00023561,2]
[359238868,1745857865284,-400.0,0.00023561,2]
[359238869,1745857865294,-329.54391353,0.00023561,2]
[359238870,1745857865304,-400.0,0.00023561,2]
[359238871,1745857865314,-400.0,0.00023561,2]
[359238872,1745857865324,-1932.97,0.00023561,2]
[359238873,1745857865335,-400.0,0.00023561,2]
[359238874,1745857865345,-910.14,0.00023561,2]
[359238875,1745857865355,-400.0,0.00023561,2]
[359238876,1745857865366,-400.0,0.00023561,2]
[359238877,1745857865376,-400.0,0.00023561,2]
[359238878,1745857865386,-400.0,0.00023561,2]
[359238879,1745857865396,-400.0,0.00023561,2]
[359238880,1745857865407,-400.0,0.00023561,2]
[359238881,1745857865416,-400.0,0.00023561,2]
[359238882,1745857865426,-400.0,0.00023561,2]
[359238883,1745857865437,-400.0,0.00023561,2]
[359238884,1745857865447,-400.0,0.00023561,2]
[359238885,1745857865458,-400.0,0.00023561,2]
[359238886,1745857865470,-449.5,0.00023561,2]
[359238887,1745857865481,-400.0,0.00023561,2]
[359238888,1745857865491,-400.0,0.00023561,2]
[359238889,1745857865502,-400.0,0.00023561,2]
[359238890,1745857865512,-625.19,0.00023561,2]
[359238891,1745857865522,-653.69,0.00023561,2]
[359238892,1745857865532,-400.0,0.00023561,2]
[359238893,1745857865543,-400.0,0.00023561,2]
[359238894,1745857865554,-400.0,0.00023561,2]
[359238895,1745857865564,-400.0,0.00023561,2]
[359238896,1745857865573,-400.0,0.00023561,2]
[359238897,1745857865583,-674.77,0.00023561,2]
[359238898,1745857865593,-400.0,0.00023561,2]
[359238899,1745857865603,-636.98,0.00023561,2]
[359238900,1745857865614,-400.0,0.00023561,2]
[359238901,1745857865623,-192.690572,0.00023561,7]
[359238902,1745857865633,-400.0,0.00023561,2]
[359238903,1745857865643,-400.0,0.00023561,2]
[359238904,1745857865653,-843.93,0.00023561,2]
[359238905,1745857865663,-400.0,0.00023561,2]
[359238906,1745857865673,-400.0,0.00023561,2]
[359238907,1745857865683,-400.0,0.00023561,2]
[359238908,1745857865693,-400.0,0.00023561,2]
[359238909,1745857865703,-400.0,0.00023561,2]
[359238910,1745857865713,-592.15,0.00023561,2]
[359238911,1745857865723,-400.0,0.00023561,2]
[359238912,1745857865733,-621.69,0.00023561,2]
[359238913,1745857865743,-426.17,0.00023561,2]
[359238914,1745857865754,-400.0,0.00023561,2]
[359238915,1745857865764,-400.0,0.00023561,2]
[359238916,1745857865774,-400.0,0.00023561,2]
[359238917,1745857865784,-400.0,0.00023561,2]
[359238918,1745857865794,-442.96,0.00023561,2]
[359238919,1745857865803,-400.0,0.00023561,2]
[359238920,1745857865813,-1882.14,0.00023561,2]
[359238921,1745857865824,-5745.79,0.00023561,2]
[359238922,1745857865834,-2413.24,0.00023561,2]
[359238923,1745857865844,-539.43,0.00023561,2]
[359238924,1745857865855,-317.77894226,0.00023561,2]
[359238925,1745857865866,-400.0,0.00023561,2]
[359238926,1745857865875,-610.57,0.00023561,2]
[359238927,1745857865886,-400.0,0.00023561,2]
[359238928,1745857865896,-400.0,0.00023561,2]
[359238929,1745857865905,-400.0,0.00023561,2]
[359238930,1745857865915,-436.54,0.00023561,2]
[359238931,1745857865925,-400.0,0.00023561,2]
[359238932,1745857865937,-3765.41,0.00023561,2]
[359238933,1745857865946,-400.0,0.00023561,2]
[359238934,1745857865955,-400.0,0.00023561,2]
[359238935,1745857865964,-407.55189839,0.00023561,2]
[359238936,1745857865974,-400.0,0.00023561,2]
[359238937,1745857865984,-400.0,0.00023561,2]
[359238938,1745857865994,-400.0,0.00023561,2]
[359238939,1745857866003,-400.0,0.00023561,2]
[359238940,1745857866013,-400.0,0.00023561,2]
[359238941,1745857866022,-400.0,0.00023561,2]
[359238942,1745857866031,-525.34,0.00023561,2]
[359238943,1745857866040,-400.0,0.00023561,2]
[359238944,1745857866049,-400.0,0.00023561,2]
[359238945,1745857866059,-1845.6,0.00023561,2]
[359238946,1745857866068,-400.0,0.00023561,2]
[359238947,1745857866078,-2279.53,0.00023561,2]
[359238948,1745857866087,-400.0,0.00023561,2]
[359238949,1745857866097,-400.0,0.00023561,2]
[359238950,1745857866106,-400.0,0.00023561,2]
[359238951,1745857866116,-2067.73,0.00023561,2]
[359238952,1745857866125,-1329.66,0.00023561,2]
[359238953,1745857866135,-400.0,0.00023561,2]
[359238954,1745857866145,-400.0,0.00023561,2]
[359238955,1745857866154,-400.0,0.00023561,2]
[359238956,1745857866164,-400.0,0.00023561,2]
[359238957,1745857866173,-400.0,0.00023561,2]
[359238958,1745857866183,-400.0,0.00023561,2]
[359238959,1745857866193,-516.14,0.00023561,2]
[359238960,1745857866331,-400.0,0.00023561,2]
[359238961,1745857866341,-400.0,0.00023561,2]
[359238962,1745857866352,-400.0,0.00023561,2]
[359238963,1745857866362,-400.0,0.00023561,2]
[359238964,1745857866371,-1688.01,0.00023561,2]
[359238965,1745857866382,-319.80279017,0.00023561,2]
[359238966,1745857866391,-480.39,0.00023561,2]
[359238967,1745857866400,-151.0,0.00023561,2]
[359238968,1745857866409,-400.0,0.00023561,2]
[359238969,1745857866418,-438.37355172,0.00023561,2]
[359238970,1745857866427,-151.0,0.00023561,2]
[359238971,1745857866438,-2262.33,0.00023561,2]
[359238972,1745857866447,-944.39,0.00023561,2]
[359238973,1745857866459,-400.0,0.00023561,2]
[359238974,1745857866471,-1850.45,0.00023561,2]
[359238975,1745857866481,-4025.89,0.00023561,2]
[359238976,1745857866490,-1007.04,0.00023561,2]
[359238977,1745857866499,-1572.47,0.00023561,2]
[359238978,1745857866508,-400.0,0.00023561,2]
[359238979,1745857866518,-400.0,0.00023561,2]
[359238980,1745857866527,-324.41692662,0.00023561,2]
[359238981,1745857866536,-1037.72,0.00023561,2]
[359238982,1745857866548,-507.04471262,0.00023561,2]
[359238983,1745857866558,-400.0,0.00023561,2]
[359238984,1745857866567,-401.46,0.00023561,2]
[359238985,1745857866578,-400.0,0.00023561,2]
[359238986,1745857866587,-400.0,0.00023561,2]
[359238987,1745857866597,-1175.22,0.00023561,2]
[359238988,1745857866607,-309.18667174,0.00023561,2]
[359238989,1745857866617,-400.0,0.00023561,2]
[359238990,1745857866626,-400.0,0.00023561,2]
[359238991,1745857866636,-400.0,0.00023561,2]
[359238992,1745857866645,-400.0,0.00023561,2]
[359238993,1745857866654,-400.0,0.00023561,2]
[359238994,1745857866664,-400.0,0.00023561,2]
[359238995,1745857866674,-400.0,0.00023561,2]
[359238996,1745857866685,-1526.26,0.00023561,2]
[359238997,1745857866694,-400.0,0.00023561,2]
[359238998,1745857866704,-2181.29,0.00023561,2]
[359238999,1745857866714,-606.89,0.00023561,2]
[359239000,1745857866723,-442.49,0.00023561,2]
[359239001,1745857866732,-400.0,0.00023561,2]
[359239002,1745857866741,-400.0,0.00023561,2]
[359239003,1745857866751,-1817.98,0.00023561,2]
[359239004,1745857866760,-400.0,0.00023561,2]
[359239005,1745857866769,-472.4,0.00023561,2]
[359239006,1745857866778,-785.77,0.00023561,2]
[359239007,1745857866787,-711.8,0.00023561,2]
[359239008,1745857866797,-400.0,0.00023561,2]
[359239009,1745857866806,-1524.82,0.00023561,2]
[359239010,1745857866815,-467.4,0.00023561,2]
[359239011,1745857866824,-400.0,0.00023561,2]
[359239012,1745857866833,-2769.08,0.00023561,2]
[359239013,1745857866842,-642.11,0.00023561,2]
[359239014,1745857866851,-465.51,0.00023561,2]
[359239015,1745857866860,-708.12,0.00023561,2]
[359239016,1745857866868,-444.61,0.00023561,2]
[359239017,1745857866877,-3358.09,0.00023561,2]
[359239018,1745857866886,-3146.7,0.00023561,2]
[359239019,1745857866894,-400.0,0.00023561,2]
[359239020,1745857866903,-2139.46,0.00023561,2]
[359239021,1745857866912,-431.35,0.00023561,2]
[359239022,1745857866920,-2073.08,0.00023561,2]
[359239023,1745857866930,-400.0,0.00023561,2]
[359239024,1745857866939,-400.0,0.00023561,2]
[359239025,1745857866947,-426.9,0.00023561,2]
[359239026,1745857866956,-400.0,0.00023561,2]
[359239027,1745857866966,-400.0,0.00023561,2]
[359239028,1745857866975,-1946.42,0.00023561,2]
[359239029,1745857866984,-400.0,0.00023561,2]
[359239030,1745857866993,-545.61,0.00023561,2]
[359239031,1745857867002,-2275.81,0.00023561,2]
[359239032,1745857867011,-2120.54,0.00023561,2]
[359239033,1745857867020,-400.0,0.00023561,2]
[359239034,1745857867030,-400.0,0.00023561,2]
[359239035,1745857867039,-1457.83,0.00023561,2]
[359239036,1745857867048,-400.0,0.00023561,2]
[359239037,1745857867057,-1913.11,0.00023561,2]
[359239038,1745857867067,-567.69,0.00023561,2]
[359239039,1745857867077,-400.0,0.00023561,2]
[359239040,1745857867086,-400.0,0.00023561,2]
[359239041,1745857867095,-400.0,0.00023561,2]
[359239042,1745857867105,-400.0,0.00023561,2]
[359239043,1745857867114,-2049.63,0.00023561,2]
[359239044,1745857867123,-472.15,0.00023561,2]
[359239045,1745857867132,-400.0,0.00023561,2]
[359239046,1745857867141,-400.0,0.00023561,2]
[359239047,1745857867151,-400.0,0.00023561,2]
[359239048,1745857867160,-400.0,0.00023561,2]
[359239049,1745857867169,-400.0,0.00023561,2]
[359239050,1745857867178,-566.8670154,0.00023589,2]
[359239051,1745857867188,-313.4808757,0.00023835,2]
[359239052,1745857867197,-400.0,0.00023835,2]
[359239053,1745857867206,-484.15,0.00023835,2]
[359239054,1745857867215,-400.0,0.00023835,2]
[359239055,1745857867225,-204.72364932,0.00023835,2]
[359239056,1745857867234,-400.0,0.00023835,2]
[359239057,1745857867243,-400.0,0.00023835,2]
[359239058,1745857867252,-400.0,0.00023835,2]
[359239059,1745857867261,-400.0,0.00023835,2]
[359239060,1745857867271,-425.6,0.00023835,2]
[359239061,1745857867280,-400.0,0.00023835,2]
[359239062,1745857867290,-400.0,0.00023835,2]
[359239063,1745857867299,-400.0,0.00023835,2]
[359239064,1745857867308,-500.0,0.00023835,2]
[359239065,1745857867318,-400.0,0.00023835,2]
[359239066,1745857867328,-689.45,0.00023835,2]
[359239067,1745857867337,-400.0,0.00023835,2]
[359239068,1745857867346,-400.0,0.00023835,2]
[359239069,1745857867356,-400.0,0.00023835,2]
[359239070,1745857867365,-353.88167891,0.00023835,2]
[359239071,1745857867375,-400.0,0.00023835,2]
[359239072,1745857867384,-400.0,0.00023835,2]
[359239073,1745857867393,-400.0,0.00023835,2]
[359239074,1745857867403,-400.0,0.00023835,2]
[359239075,1745857867412,-400.0,0.00023835,2]
[359239076,1745857867422,-400.0,0.00023835,2]
[359239077,1745857867433,-400.0,0.00023835,2]
[359239078,1745857867443,-400.0,0.00023835,2]
[359239079,1745857867452,-400.0,0.00023835,2]
[359239080,1745857867462,-400.0,0.00023835,2]
[359239081,1745857867473,-400.0,0.00023835,2]
[359239082,1745857867484,-400.0,0.00023835,2]
[359239083,1745857867493,-666.85,0.00023835,2]
[359239084,1745857867502,-400.0,0.00023835,2]
[359239085,1745857867511,-503.93,0.00023835,2]
[359239086,1745857867522,-400.0,0.00023835,2]
[359239087,1745857867531,-400.0,0.00023835,2]
[359239088,1745857867541,-400.0,0.00023835,2]
[359239089,1745857867551,-403.43514747,0.00023835,2]
[359239090,1745857867560,-1210.99,0.00023835,2]
[359239091,1745857867570,-423.21159281,0.00023835,2]
[359239092,1745857867579,-400.0,0.00023835,2]
[359239093,1745857867588,-518.55,0.00023835,2]
[359239094,1745857867597,-400.0,0.00023835,2]
[359239095,1745857867605,-400.0,0.00023835,2]
[359239096,1745857867614,-361.87162305,0.00023835,2]
[359239097,1745857867623,-475.4,0.00023835,2]
[359239098,1745857867633,-400.0,0.00023835,2]
[359239099,1745857867642,-400.0,0.00023835,2]
[359239100,1745857867651,-400.0,0.00023835,2]
[359239101,1745857867661,-2002.58,0.00023835,2]
[359239102,1745857867670,-950.55,0.00023835,2]
[359239103,1745857867679,-400.0,0.00023835,2]
[359239104,1745857867689,-160.22165966,0.00023835,2]
[359239105,1745857867698,-400.0,0.00023835,2]
[359239106,1745857867708,-682.21,0.00023835,2]
[359239107,1745857867717,-400.0,0.00023835,2]
[359239108,1745857867726,-400.0,0.00023835,2]
[359239109,1745857867735,-400.0,0.00023835,2]
[359239110,1745857867744,-400.0,0.00023835,2]
[359239111,1745857867753,-400.0,0.00023835,2]
[359239112,1745857867762,-400.0,0.00023835,2]
[359239113,1745857867771,-400.0,0.00023835,2]
[359239114,1745857867781,-400.0,0.00023835,2]
[359239115,1745857867790,-400.0,0.00023835,2]
[359239116,1745857867800,-400.0,0.00023835,2]
[359239117,1745857867809,-400.0,0.00023835,2]
[359239118,1745857867818,-400.0,0.00023835,2]
[359239119,1745857867827,-400.0,0.00023835,2]
[359239120,1745857867836,-400.0,0.00023835,2]
[359239121,1745857867845,-400.0,0.00023835,2]
[359239122,1745857867854,-400.0,0.00023835,2]
[359239123,1745857867864,-400.0,0.00023835,2]
[359239124,1745857867873,-540.77618946,0.00023835,2]
[359239125,1745857867882,-400.0,0.00023835,2]
[359239126,1745857867892,-400.0,0.00023835,2]
[359239127,1745857867902,-400.0,0.00023835,2]
[359239128,1745857867911,-440.4,0.00023835,2]
[359239129,1745857867921,-400.0,0.00023835,2]
[359239130,1745857867930,-414.03,0.00023835,2]
[359239131,1745857867940,-400.0,0.00023835,2]
[359239132,1745857867949,-400.0,0.00023835,2]
[359239133,1745857867958,-400.0,0.00023835,2]
[359239134,1745857867967,-227.83754233,0.00023835,2]
[359239135,1745857867976,-400.0,0.00023835,2]
[359239136,1745857867985,-830.13,0.00023835,2]
[359239137,1745857867995,-400.0,0.00023835,2]
[359239138,1745857868004,-400.0,0.00023835,2]
[359239139,1745857868013,-400.0,0.00023835,2]
[359239140,1745857868023,-400.0,0.00023835,2]
[359239141,1745857868034,-400.0,0.00023835,2]
[359239142,1745857868043,-400.0,0.00023835,2]
[359239143,1745857868053,-500.0,0.00023835,2]
[359239144,1745857868062,-400.0,0.00023835,2]
[359239145,1745857868072,-400.0,0.00023835,2]
[359239146,1745857868081,-400.0,0.00023835,2]
[359239147,1745857868090,-1932.97,0.00023835,2]
[359239148,1745857868100,-400.0,0.00023835,2]
[359239149,1745857868109,-910.14,0.00023835,2]
[359239150,1745857868119,-400.0,0.00023835,2]
[359239151,1745857868127,-400.0,0.00023835,2]
[359239152,1745857868137,-400.0,0.00023835,2]
[359239153,1745857868146,-400.0,0.00023835,2]
[359239154,1745857868155,-400.0,0.00023835,2]
[359239155,1745857868164,-309.53845253,0.00023835,2]
[359239156,1745857868174,-400.0,0.00023835,2]
[359239157,1745857868183,-400.0,0.00023835,2]
[359239158,1745857868192,-411.62506163,0.00023835,2]
[359239159,1745857868203,-400.0,0.00023835,2]
[359239160,1745857868212,-400.0,0.00023835,2]
[359239161,1745857868221,-449.5,0.00023835,2]
[359239162,1745857868231,-400.0,0.00023835,2]
[359239163,1745857868240,-400.0,0.00023835,2]
[359239164,1745857868249,-400.0,0.00023835,2]
[359239165,1745857868259,-625.19,0.00023835,2]
[359239166,1745857868269,-653.69,0.00023835,2]
[359239167,1745857868279,-400.0,0.00023835,2]
[359239168,1745857868289,-400.0,0.00023835,2]
[359239169,1745857868298,-400.0,0.00023835,2]
[359239170,1745857868307,-198.0,0.00023835,2]
[359239171,1745857868316,-400.0,0.00023835,2]
[359239172,1745857868326,-674.77,0.00023835,2]
[359239173,1745857868335,-400.0,0.00023835,2]
[359239174,1745857868343,-636.98,0.00023835,2]
[359239175,1745857868352,-400.0,0.00023835,2]
[359239176,1745857868362,-400.0,0.00023835,2]
[359239177,1745857868370,-400.0,0.00023835,2]
[359239178,1745857868379,-843.93,0.00023835,2]
[359239179,1745857868388,-400.0,0.00023835,2]
[359239180,1745857868397,-400.0,0.00023835,2]
[359239181,1745857868407,-400.0,0.00023835,2]
[359239182,1745857868416,-400.0,0.00023835,2]
[359239183,1745857868425,-400.0,0.00023835,2]
[359239184,1745857868435,-592.15,0.00023835,2]
[359239185,1745857868444,-400.0,0.00023835,2]
[359239186,1745857868454,-621.69,0.00023835,2]
[359239187,1745857868463,-426.17,0.00023835,2]
[359239188,1745857868474,-400.0,0.00023835,2]
[359239189,1745857868484,-400.0,0.00023835,2]
[359239190,1745857868494,-400.0,0.00023835,2]
[359239191,1745857868503,-400.0,0.00023835,2]
[359239192,1745857868512,-442.96,0.00023835,2]
[359239193,1745857868521,-534.43537189,0.00023835,2]
[359239194,1745857868531,-1882.14,0.00023835,2]
[359239195,1745857868541,-5745.79,0.00023835,2]
[359239196,1745857868552,-2413.24,0.00023835,2]
[359239197,1745857868562,-539.43,0.00023835,2]
[359239198,1745857868570,-400.0,0.00023835,2]
[359239199,1745857868580,-610.57,0.00023835,2]
[359239200,1745857868588,-400.0,0.00023835,2]
[359239201,1745857868597,-400.0,0.00023835,2]
[359239202,1745857868606,-400.0,0.00023835,2]
[359239203,1745857868615,-436.54,0.00023835,2]
[359239204,1745857868623,-400.0,0.00023835,2]
[359239205,1745857868633,-3765.41,0.00023835,2]
[359239206,1745857868642,-400.0,0.00023835,2]
[359239207,1745857868651,-400.0,0.00023835,2]
[359239208,1745857868661,-503.90791814,0.00023835,2]
[359239209,1745857868670,-400.0,0.00023835,2]
[359239210,1745857868679,-400.0,0.00023835,2]
[359239211,1745857868689,-400.0,0.00023835,2]
[359239212,1745857868698,-400.0,0.00023835,2]
[359239213,1745857868707,-400.0,0.00023835,2]
[359239214,1745857868717,-525.34,0.00023835,2]
[359239215,1745857868727,-400.0,0.00023835,2]
[359239216,1745857868736,-400.0,0.00023835,2]
[359239217,1745857868745,-1845.6,0.00023835,2]
[359239218,1745857868755,-400.0,0.00023835,2]
[359239219,1745857868764,-2279.53,0.00023835,2]
[359239220,1745857868776,-400.0,0.00023835,2]
[359239221,1745857868785,-400.0,0.00023835,2]
[359239222,1745857868794,-400.0,0.00023835,2]
[359239223,1745857868803,-2067.73,0.00023835,2]
[359239224,1745857868813,-1329.66,0.00023835,2]
[359239225,1745857868822,-400.0,0.00023835,2]
[359239226,1745857868832,-400.0,0.00023835,2]
[359239227,1745857868841,-400.0,0.00023835,2]
[359239228,1745857868850,-346.1167556,0.00023835,2]
[359239229,1745857868860,-400.0,0.00023835,2]
[359239230,1745857868869,-400.0,0.00023835,2]
[359239231,1745857868878,-516.14,0.00023835,2]
[359239232,1745857868888,-400.0,0.00023835,2]
[359239233,1745857868898,-400.0,0.00023835,2]
[359239234,1745857868907,-400.0,0.00023835,2]
[359239235,1745857868916,-400.0,0.00023835,2]
[359239236,1745857868927,-1688.01,0.00023835,2]
[359239237,1745857868937,-480.39,0.00023835,2]
[359239238,1745857868946,-151.0,0.00023835,2]
[359239239,1745857868956,-400.0,0.00023835,2]
[359239240,1745857868965,-151.0,0.00023835,2]
[359239241,1745857868974,-2262.33,0.00023835,2]